fUSD/lending_fUSD_20250809
["ID","MTS","AMOUNT","RATE_DAILY","PERIOD"]
[378127235,1754740252723,-400.89,0.00024931,2]
[378127236,1754740252737,-400.0,0.00024931,2]
[378127237,1754740252752,-400.0,0.00024931,2]
[378127238,1754740252765,-400.0,0.00024931,2]
[378127239,1754740252778,-400.0,0.00024931,2]
[378127241,1754740252792,-400.0,0.00024931,2]
[378127243,1754740252805,-400.0,0.00024931,2]
[378127246,1754740252819,-401.63745886,0.00024931,2]
[378127248,1754740252832,-400.0,0.00024931,2]
[378127251,1754740252845,-400.0,0.00024931,2]
[378127253,1754740252859,-400.0,0.00024931,2]
[378127256,1754740252872,-400.0,0.00024931,2]
[378127258,1754740252884,-400.0,0.00024931,2]
[378127260,1754740252896,-497.48,0.00024931,2]
[378127263,1754740252910,-400.0,0.00024931,2]
[378127265,1754740252923,-400.0,0.00024931,2]
[378127268,1754740252936,-400.0,0.00024931,2]
[378127270,1754740252949,-400.0,0.00024931,2]
[378127273,1754740252962,-400.0,0.00024931,2]
[378127275,1754740252975,-400.0,0.00024931,2]
[378127277,1754740252988,-335.29544756,0.00024931,2]
[378127280,1754740253000,-400.0,0.00024931,2]
[378127282,1754740253013,-199.1,0.00024931,2]
[378127284,1754740253026,-423.34368527,0.00024931,2]
[378127287,1754740253039,-400.0,0.00024931,2]
[378127289,1754740253052,-400.0,0.00024931,2]
[378127291,1754740253064,-400.0,0.00024931,2]
[378127294,1754740253078,-400.0,0.00024931,2]
[378127296,1754740253091,-400.0,0.00024931,2]
[378127299,1754740253104,-400.0,0.00024931,2]
[378127301,1754740253117,-207.97262815,0.00024931,2]
[378127304,1754740253131,-400.0,0.00024931,2]
[378127306,1754740253144,-400.0,0.00024931,2]
[378127309,1754740253157,-400.0,0.00024931,2]
[378127311,1754740253170,-263.81603242,0.00024931,2]
[378127313,1754740253183,-400.0,0.00024931,2]
[378127316,1754740253197,-400.0,0.00024931,2]
[378127318,1754740253210,-400.0,0.00024931,2]
[378127321,1754740253223,-548.93655854,0.00024931,2]
[378127323,1754740253236,-152.78879,0.00024931,2]
[378127326,1754740253250,-1127.276391,0.00024931,2]
[378127328,1754740253260,-400.0,0.00024931,2]
[378127330,1754740253269,-400.0,0.00024931,2]
[378127332,1754740253283,-400.0,0.00024931,2]
[378127334,1754740253292,-400.0,0.00024931,2]
[378127336,1754740253303,-400.0,0.00024931,2]
[378127338,1754740253312,-400.0,0.00024931,2]
[378127340,1754740253322,-402.99598093,0.00024931,2]
[378127342,1754740253331,-400.0,0.00024931,2]
[378127344,1754740253341,-400.0,0.00024931,2]
[378127346,1754740253350,-400.0,0.00024931,2]
[378127348,1754740253361,-400.0,0.00024931,2]
[378127350,1754740253370,-400.0,0.00024931,2]
[378127352,1754740253379,-602.24,0.00024931,2]
[378127354,1754740253389,-400.0,0.00024931,2]
[378127356,1754740253398,-400.0,0.00024931,2]
[378127358,1754740253407,-400.0,0.00024931,2]
[378127360,1754740253417,-2304.476226,0.00024931,2]
[378127399,1754740253762,-523.49,0.00024931,2]
[378127403,1754740253798,-400.0,0.00024931,2]
[378127407,1754740253818,-400.0,0.00024931,2]
[378127409,1754740253827,-2164.833233,0.00024931,2]
[378127411,1754740253836,-400.0,0.00024931,2]
[378127413,1754740253846,-400.0,0.00024931,2]
[378127415,1754740253855,-467.9,0.00024931,2]
[378127417,1754740253864,-400.0,0.00024931,2]
[378127419,1754740253874,-400.0,0.00024931,2]
[378127421,1754740253883,-400.0,0.00024931,2]
[378127423,1754740253892,-174.162443,0.00024931,2]
[378127425,1754740253901,-402.95115327,0.00024931,2]
[378127427,1754740253910,-400.0,0.00024931,2]
[378127429,1754740253920,-414.47,0.00024931,2]
[378127430,1754740253930,-400.0,0.00024931,2]
[378127432,1754740253939,-400.0,0.00024931,2]
[378127434,1754740253949,-400.0,0.00024931,2]
[378127437,1754740253958,-400.0,0.00024931,2]
[378127438,1754740253967,-400.0,0.00024931,2]
[378127441,1754740253977,-400.0,0.00024931,2]
[378127442,1754740253986,-400.0,0.00024931,2]
[378127445,1754740253995,-400.0,0.00024931,2]
[378127446,1754740254005,-400.0,0.00024931,2]
[378127449,1754740254015,-400.0,0.00024931,2]
[378127450,1754740254024,-400.0,0.00024931,2]
[378127453,1754740254034,-565.79,0.00024931,2]
[378127455,1754740254044,-403.81047275,0.00024931,2]
[378127457,1754740254054,-400.0,0.00024931,2]
[378127458,1754740254063,-302.74555729,0.00024931,2]
[378127460,1754740254072,-400.0,0.00024931,2]
[378127463,1754740254082,-400.0,0.00024931,2]
[378127464,1754740254092,-400.0,0.00024931,2]
[378127466,1754740254101,-400.0,0.00024931,2]
[378127469,1754740254111,-400.0,0.00024931,2]
[378127471,1754740254120,-624.24,0.00024931,2]
[378127472,1754740254130,-400.0,0.00024931,2]
[378127475,1754740254139,-400.0,0.00024931,2]
[378127477,1754740254148,-400.0,0.00024931,2]
[378127479,1754740254158,-400.0,0.00024931,2]
[378127480,1754740254167,-400.0,0.00024931,2]
[378127483,1754740254176,-695.28,0.00024931,2]
[378127484,1754740254186,-400.0,0.00024931,2]
[378127486,1754740254195,-400.0,0.00024931,2]
[378127488,1754740254204,-400.0,0.00024931,2]
[378127490,1754740254213,-400.0,0.00024931,2]
[378127493,1754740254223,-400.0,0.00024931,2]
[378127495,1754740254232,-400.0,0.00024931,2]
[378127497,1754740254241,-400.0,0.00024931,2]
[378127499,1754740254251,-400.0,0.00024931,2]
[378127501,1754740254260,-510.89,0.00024931,2]
[378127503,1754740254269,-403.6329811,0.00024931,2]
[378127505,1754740254281,-273.94386148,0.00024931,2]
[378127507,1754740254290,-686.99,0.00024931,2]
[378127509,1754740254300,-400.0,0.00024931,2]
[378127511,1754740254309,-440.04703341,0.00024931,2]
[378127513,1754740254319,-400.0,0.00024931,2]
[378127515,1754740254329,-473.38666561,0.00024931,2]
[378127517,1754740254338,-400.0,0.00024931,2]
[378127519,1754740254349,-400.0,0.00024931,2]
[378127521,1754740254359,-528.13,0.00024931,2]
[378127523,1754740254368,-400.0,0.00024931,2]
[378127525,1754740254378,-400.0,0.00024931,2]
[378127527,1754740254387,-524.38851789,0.00024931,2]
[378127529,1754740254396,-672.5,0.00024931,2]
[378127531,1754740254405,-400.0,0.00024931,2]
[378127533,1754740254415,-400.0,0.00024931,2]
[378127535,1754740254424,-400.0,0.00024931,2]
[378127537,1754740254433,-377.68,0.00024931,2]
[378127539,1754740254442,-400.0,0.00024931,2]
[378127541,1754740254451,-400.0,0.00024931,2]
[378127543,1754740254460,-524.82,0.00024931,2]
[378127545,1754740254469,-501.52,0.00024931,2]
[378127547,1754740254478,-400.0,0.00024931,2]
[378127549,1754740254487,-400.0,0.00024931,2]
[378127551,1754740254496,-412.43,0.00024931,2]
[378127553,1754740254505,-400.0,0.00024931,2]
[378127555,1754740254514,-400.0,0.00024931,2]
[378127557,1754740254524,-400.0,0.00024931,2]
[378127559,1754740254533,-400.0,0.00024931,2]
[378127561,1754740254542,-400.0,0.00024931,2]
[378127563,1754740254551,-400.0,0.00024931,2]
[378127565,1754740254560,-400.0,0.00024931,2]
[378127566,1754740254569,-400.0,0.00024931,2]
[378127569,1754740254578,-400.0,0.00024931,2]
[378127571,1754740254587,-424.24935377,0.00024931,2]
[378127572,1754740254596,-400.0,0.00024931,2]
[378127574,1754740254606,-415.49,0.00024931,2]
[378127576,1754740254615,-400.0,0.00024931,2]
[378127578,1754740254624,-400.0,0.00024931,2]
[378127580,1754740254633,-500.23,0.00024931,2]
[378127582,1754740254643,-439.13,0.00024931,2]
[378127584,1754740254652,-400.0,0.00024931,2]
[378127587,1754740254661,-400.0,0.00024931,2]
[378127588,1754740254670,-400.0,0.00024931,2]
[378127590,1754740254680,-408.11399527,0.00024931,2]
[378127592,1754740254689,-400.0,0.00024931,2]
[378127594,1754740254699,-442.3,0.00024931,2]
[378127596,1754740254708,-425.11,0.00024931,2]
[378127598,1754740254717,-1000.0,0.00024931,2]
[378127600,1754740254726,-400.0,0.00024931,2]
[378127602,1754740254735,-400.0,0.00024931,2]
[378127605,1754740254744,-400.0,0.00024931,2]
[378127606,1754740254754,-400.0,0.00024931,2]
[378127608,1754740254763,-400.0,0.00024931,2]
[378127610,1754740254772,-400.0,0.00024931,2]
[378127612,1754740254781,-400.0,0.00024931,2]
[378127614,1754740254790,-400.0,0.00024931,2]
[378127615,1754740254799,-400.0,0.00024931,2]
[378127617,1754740254808,-400.0,0.00024931,2]
[378127619,1754740254817,-400.0,0.00024931,2]
[378127621,1754740254826,-400.0,0.00024931,2]
[378127622,1754740254835,-514.82,0.00024931,2]
[378127623,1754740254844,-400.0,0.00024931,2]
[378127624,1754740254854,-584.43,0.00024931,2]
[378127625,1754740254863,-400.0,0.00024931,2]
[378127626,1754740254872,-465.93,0.00024931,2]
[378127627,1754740254881,-400.0,0.00024931,2]
[378127628,1754740254890,-289.18164329,0.00024931,2]
[378127629,1754740254899,-400.0,0.00024931,2]
[378127630,1754740254908,-400.0,0.00024931,2]
[378127631,1754740254917,-411.24,0.00024931,2]
[378127632,1754740254927,-456.32,0.00024931,2]
[378127634,1754740254936,-400.0,0.00024931,2]
[378127636,1754740254945,-400.0,0.00024931,2]
[378127638,1754740254954,-400.0,0.00024931,2]
[378127640,1754740254963,-400.0,0.00024931,2]
[378127642,1754740254973,-650.41,0.00024931,2]
[378127644,1754740254982,-168.46896709,0.00024931,2]
[378127646,1754740254991,-421.79611535,0.00024931,2]
[378127648,1754740255000,-400.0,0.00024931,2]
[378127650,1754740255009,-505.31,0.00024931,2]
[378127652,1754740255018,-400.0,0.00024931,2]
[378127654,1754740255027,-421.71,0.00024931,2]
[378127656,1754740255037,-400.0,0.00024931,2]
[378127658,1754740255047,-400.0,0.00024931,2]
[378127660,1754740255056,-400.0,0.00024931,2]
[378127662,1754740255065,-400.0,0.00024931,2]
[378127664,1754740255074,-400.0,0.00024931,2]
[378127666,1754740255083,-400.0,0.00024931,2]
[378127668,1754740255092,-452.76,0.00024931,2]
[378127670,1754740255101,-433.75,0.00024931,2]
[378127672,1754740255110,-400.0,0.00024931,2]
[378127674,1754740255119,-400.0,0.00024931,2]
[378127676,1754740255128,-414.8,0.00024931,2]
[378127678,1754740255138,-400.0,0.00024931,2]
[378127680,1754740255147,-591.93,0.00024931,2]
[378127682,1754740255155,-400.0,0.00024931,2]
[378127684,1754740255165,-400.0,0.00024931,2]
[378127686,1754740255175,-413.28,0.00024931,2]
[378127688,1754740255184,-400.0,0.00024931,2]
[378127690,1754740255193,-400.0,0.00024931,2]
[378127691,1754740255202,-401.22946725,0.00024931,2]
[378127693,1754740255211,-400.0,0.00024931,2]
[378127695,1754740255221,-400.0,0.00024931,2]
[378127697,1754740255230,-400.0,0.00024931,2]
[378127699,1754740255239,-620.14,0.00024931,2]
[378127701,1754740255248,-475.42,0.00024931,2]
[378127703,1754740255257,-400.0,0.00024931,2]
[378127705,1754740255266,-400.0,0.00024931,2]
[378127707,1754740255280,-400.0,0.00024931,2]
[378127709,1754740255289,-400.0,0.00024931,2]
[378127711,1754740255299,-400.0,0.00024931,2]
[378127714,1754740255308,-400.0,0.00024931,2]
[378127716,1754740255318,-400.0,0.00024931,2]
[378127718,1754740255328,-723.96,0.00024931,2]
[378127720,1754740255337,-400.0,0.00024931,2]
[378127722,1754740255346,-770.94,0.00024931,2]
[378127723,1754740255355,-527.1,0.00024931,2]
[378127726,1754740255365,-400.0,0.00024931,2]
[378127728,1754740255374,-400.0,0.00024931,2]
[378127730,1754740255384,-400.0,0.00024931,2]
[378127731,1754740255393,-431.36,0.00024931,2]
[378127734,1754740255402,-400.0,0.00024931,2]
[378127736,1754740255412,-403.56328896,0.00024931,2]
[378127738,1754740255421,-400.0,0.00024931,2]
[378127740,1754740255431,-400.0,0.00024931,2]
[378127742,1754740255440,-400.0,0.00024931,2]
[378127744,1754740255449,-167.04845452,0.00024931,2]
[378127746,1754740255458,-400.0,0.00024931,2]
[378127747,1754740255467,-400.0,0.00024931,2]
[378127750,1754740255476,-400.0,0.00024931,2]
[378127752,1754740255486,-416.20332512,0.00024931,2]
[378127753,1754740255495,-497.78,0.00024931,2]
[378127755,1754740255504,-400.0,0.00024931,2]
[378127757,1754740255513,-400.0,0.00024931,2]
[378127759,1754740255523,-306.52513922,0.00024931,2]
[378127761,1754740255532,-400.0,0.00024931,2]
[378127764,1754740255541,-756.29,0.00024931,2]
[378127765,1754740255550,-434.41844531,0.00024931,2]
[378127767,1754740255559,-402.29514988,0.00024931,2]
[378127769,1754740255568,-434.89,0.00024931,2]
[378127771,1754740255578,-400.0,0.00024931,2]
[378127773,1754740255587,-400.0,0.00024931,2]
[378127775,1754740255597,-501.7,0.00024931,2]
[378127777,1754740255606,-400.0,0.00024931,2]
[378127779,1754740255615,-400.0,0.00024931,2]
[378127781,1754740255624,-400.0,0.00024931,2]
[378127783,1754740255634,-400.0,0.00024931,2]
[378127786,1754740255643,-400.0,0.00024931,2]
[378127788,1754740255652,-400.0,0.00024931,2]
[378127790,1754740255661,-400.0,0.00024931,2]
[378127791,1754740255671,-400.0,0.00024931,2]
[378127794,1754740255680,-400.43939884,0.00024931,2]
[378127795,1754740255689,-400.0,0.00024931,2]
[378127798,1754740255699,-408.86,0.00024931,2]
[378127800,1754740255708,-400.0,0.00024931,2]
[378127801,1754740255718,-400.0,0.00024931,2]
[378127804,1754740255727,-400.0,0.00024931,2]
[378127806,1754740255737,-400.0,0.00024931,2]
[378127808,1754740255746,-400.0,0.00024931,2]
[378127810,1754740255755,-400.0,0.00024931,2]
[378127812,1754740255764,-400.0,0.00024931,2]
[378127814,1754740255773,-400.0,0.00024931,2]
[378127815,1754740255782,-400.0,0.00024931,2]
[378127817,1754740255791,-400.0,0.00024931,2]
[378127820,1754740255801,-401.18,0.00024931,2]
[378127822,1754740255810,-400.0,0.00024931,2]
[378127824,1754740255821,-400.0,0.00024931,2]
[378127826,1754740255830,-532.77,0.00024931,2]
[378127828,1754740255840,-400.0,0.00024931,2]
[378127830,1754740255849,-400.0,0.00024931,2]
[378127832,1754740255858,-452.79450437,0.00024931,2]
[378127834,1754740255868,-400.0,0.00024931,2]
[378127835,1754740255877,-400.0,0.00024931,2]
[378127837,1754740255887,-400.0,0.00024931,2]
[378127839,1754740255896,-402.93873317,0.00024931,2]
[378127841,1754740255906,-400.0,0.00024931,2]
[378127843,1754740255916,-400.0,0.00024931,2]
[378127845,1754740255925,-400.0,0.00024931,2]
[378127847,1754740255934,-400.0,0.00024931,2]
[378127850,1754740255944,-400.0,0.00024931,2]
[378127852,1754740255953,-400.0,0.00024931,2]
[378127854,1754740255962,-400.0,0.00024931,2]
[378127856,1754740255971,-400.0,0.00024931,2]
[378127857,1754740255980,-400.0,0.00024931,2]
[378127860,1754740255990,-400.0,0.00024931,2]
[378127862,1754740255999,-400.0,0.00024931,2]
[378127863,1754740256008,-400.0,0.00024931,2]
[378127865,1754740256018,-400.0,0.00024931,2]
[378127868,1754740256027,-400.0,0.00024931,2]
[378127870,1754740256036,-400.0,0.00024931,2]
[378127872,1754740256046,-400.0,0.00024931,2]
[378127874,1754740256055,-442.03,0.00024931,2]
[378127876,1754740256064,-400.0,0.00024931,2]
[378127878,1754740256073,-400.0,0.00024931,2]
[378127880,1754740256083,-479.47,0.00024931,2]
[378127882,1754740256092,-400.0,0.00024931,2]
[378127884,1754740256101,-553.25,0.00024931,2]
[378127886,1754740256111,-400.0,0.00024931,2]
[378127888,1754740256120,-697.16,0.00024931,2]
[378127890,1754740256129,-400.0,0.00024931,2]
[378127892,1754740256138,-400.0,0.00024931,2]
[378127894,1754740256147,-500.17767018,0.00024931,2]
[378127896,1754740256157,-400.0,0.00024931,2]
[378127898,1754740256167,-400.0,0.00024931,2]
[378127900,1754740256176,-459.79,0.00024931,2]
[378127901,1754740256185,-400.0,0.00024931,2]
[378127904,1754740256194,-760.75,0.00024931,2]
[378127905,1754740256203,-400.0,0.00024931,2]
[378127907,1754740256213,-400.0,0.00024931,2]
[378127909,1754740256222,-400.0,0.00024931,2]
[378127912,1754740256231,-400.0,0.00024931,2]
[378127914,1754740256241,-400.0,0.00024931,2]
[378127915,1754740256250,-400.0,0.00024931,2]
[378127916,1754740256259,-1052.33,0.00024931,2]
[378127918,1754740256269,-400.0,0.00024931,2]
[378127920,1754740256282,-400.0,0.00024931,2]
[378127922,1754740256291,-405.07,0.00024931,2]
[378127924,1754740256300,-707.81,0.00024931,2]
[378127926,1754740256310,-400.0,0.00024931,2]
[378127928,1754740256319,-400.0,0.00024931,2]
[378127930,1754740256329,-400.0,0.00024931,2]
[378127932,1754740256339,-400.0,0.00024931,2]
[378127934,1754740256348,-400.0,0.00024931,2]
[378127936,1754740256359,-400.0,0.00024931,2]
[378127939,1754740256369,-432.21,0.00024931,2]
[378127940,1754740256378,-533.33,0.00024931,2]
[378127943,1754740256387,-400.0,0.00024931,2]
[378127944,1754740256397,-612.81,0.00024931,2]
[378127947,1754740256406,-573.13,0.00024931,2]
[378127949,1754740256417,-330.25537499,0.00024931,2]
[378127951,1754740256428,-674.19,0.00024931,2]
[378127952,1754740256438,-400.0,0.00024931,2]
[378127955,1754740256447,-1186.37,0.00024931,2]
[378127957,1754740256457,-400.0,0.00024931,2]
[378127959,1754740256466,-400.0,0.00024931,2]
[378127960,1754740256475,-538.9,0.00024931,2]
[378127962,1754740256485,-400.0,0.00024931,2]
[378127964,1754740256495,-400.0,0.00024931,2]
[378127966,1754740256506,-621.72,0.00024931,2]
[378127968,1754740256516,-400.0,0.00024931,2]
[378127970,1754740256526,-400.0,0.00024931,2]
[378127972,1754740256535,-400.0,0.00024931,2]
[378127975,1754740256546,-730.75,0.00024931,2]
[378127976,1754740256556,-487.25,0.00024931,2]
[378127979,1754740256565,-400.0,0.00024931,2]
[378127981,1754740256574,-402.55853769,0.00024931,2]
[378127982,1754740256584,-475.57,0.00024931,2]
[378127984,1754740256593,-161.94769993,0.00024931,2]
[378127986,1754740256603,-400.0,0.00024931,2]
[378127988,1754740256612,-400.0,0.00024931,2]
[378127990,1754740256621,-400.0,0.00024931,2]
[378127992,1754740256630,-400.0,0.00024931,2]
[378127994,1754740256640,-694.98,0.00024931,2]
[378127996,1754740256649,-400.0,0.00024931,2]
[378127998,1754740256658,-400.0,0.00024931,2]
[378128000,1754740256668,-400.0,0.00024931,2]
[378128002,1754740256677,-517.55,0.00024931,2]
[378128004,1754740256687,-400.0,0.00024931,2]
[378128006,1754740256696,-400.0,0.00024931,2]
[378128008,1754740256705,-577.78,0.00024931,2]
[378128010,1754740256714,-400.0,0.00024931,2]
[378128012,1754740256724,-400.0,0.00024931,2]
[378128014,1754740256733,-400.0,0.00024931,2]
[378128016,1754740256743,-398.10487157,0.00024931,2]
[378128018,1754740256752,-490.68,0.00024931,2]
[378128020,1754740256761,-400.0,0.00024931,2]
[378128022,1754740256770,-400.0,0.00024931,2]
[378128024,1754740256780,-653.84,0.00024931,2]
[378128026,1754740256789,-578.01,0.00024931,2]
[378128028,1754740256798,-400.0,0.00024931,2]
[378128030,1754740256807,-463.86328866,0.00024931,2]
[378128032,1754740256817,-400.0,0.00024931,2]
[378128034,1754740256826,-400.0,0.00024931,2]
[378128035,1754740256836,-300.0,0.00024931,2]
[378128036,1754740256845,-400.0,0.00024931,2]
[378128037,1754740256854,-400.0,0.00024931,2]
[378128038,1754740256863,-400.0,0.00024931,2]
[378128039,1754740256873,-509.85,0.00024931,2]
[378128040,1754740256882,-552.06,0.00024931,2]
[378128041,1754740256892,-400.0,0.00024931,2]
[378128042,1754740256901,-400.0,0.00024931,2]
[378128061,1754740256911,-359.07039491,0.00024931,2]
[378128065,1754740257107,-187.17,0.00024931,2]
[378128067,1754740257117,-549.19,0.00024931,2]
[378128069,1754740257127,-400.0,0.00024931,2]
[378128071,1754740257136,-551.59,0.00024931,2]
[378128073,1754740257146,-439.98458163,0.00024931,2]
[378128075,1754740257155,-400.0,0.00024931,2]
[378128077,1754740257164,-400.0,0.00024931,2]
[378128079,1754740257173,-400.0,0.00024931,2]
[378128081,1754740257182,-400.0,0.00024931,2]
[378128083,1754740257192,-400.0,0.00024931,2]
[378128085,1754740257201,-400.0,0.00024931,2]
[378128087,1754740257210,-400.0,0.00024931,2]
[378128089,1754740257220,-400.0,0.00024931,2]
[378128091,1754740257229,-400.0,0.00024931,2]
[378128093,1754740257239,-400.0,0.00024931,2]
[378128095,1754740257248,-404.8632972,0.00024931,2]
[378128097,1754740257257,-625.42,0.00024931,2]
[378128099,1754740257267,-438.58,0.00024931,2]
[378128101,1754740257280,-400.0,0.00024931,2]
[378128104,1754740257295,-400.0,0.00024931,2]
[378128105,1754740257308,-504.2,0.00024931,2]
[378128108,1754740257319,-400.0,0.00024931,2]
[378128110,1754740257328,-407.2,0.00024931,2]
[378128112,1754740257337,-400.0,0.00024931,2]
[378128114,1754740257347,-400.0,0.00024931,2]
[378128116,1754740257357,-400.0,0.00024931,2]
[378128118,1754740257368,-400.0,0.00024931,2]
[378128120,1754740257377,-821.78,0.00024931,2]
[378128122,1754740257387,-400.0,0.00024931,2]
[378128123,1754740257396,-400.0,0.00024931,2]
[378128125,1754740257406,-400.0,0.00024931,2]
[378128128,1754740257417,-335.23633358,0.00024931,2]
[378128129,1754740257427,-312.76595245,0.00024931,2]
[378128131,1754740257438,-400.0,0.00024931,2]
[378128133,1754740257447,-400.0,0.00024931,2]
[378128135,1754740257457,-400.0,0.00024931,2]
[378128138,1754740257467,-400.0,0.00024931,2]
[378128139,1754740257476,-400.0,0.00024931,2]
[378128141,1754740257486,-400.0,0.00024931,2]
[378128143,1754740257495,-400.0,0.00024931,2]
[378128145,1754740257505,-400.0,0.00024931,2]
[378128147,1754740257514,-400.0,0.00024931,2]
[378128149,1754740257525,-400.0,0.00024931,2]
[378128152,1754740257535,-400.0,0.00024931,2]
[378128154,1754740257547,-400.0,0.00024931,2]
[378128155,1754740257563,-400.0,0.00024931,2]
[378128157,1754740257572,-400.0,0.00024931,2]
[378128159,1754740257582,-405.56,0.00024931,2]
[378128162,1754740257591,-400.0,0.00024931,2]
[378128163,1754740257601,-400.0,0.00024931,2]
[378128165,1754740257610,-410.1113033,0.00024931,2]
[378128168,1754740257620,-864.13,0.00024931,2]
[378128170,1754740257629,-400.0,0.00024931,2]
[378128171,1754740257639,-400.0,0.00024931,2]
[378128173,1754740257648,-400.0,0.00024931,2]
[378128175,1754740257657,-557.77,0.00024931,2]
[378128177,1754740257667,-691.19,0.00024931,2]
[378128179,1754740257676,-385.0472803,0.00024931,2]
[378128181,1754740257686,-400.0,0.00024931,2]
[378128184,1754740257696,-430.29968112,0.00024931,2]
[378128186,1754740257705,-400.0,0.00024931,2]
[378128188,1754740257715,-475.16810136,0.00024931,2]
[378128189,1754740257728,-400.0,0.00024931,2]
[378128191,1754740257737,-400.0,0.00024931,2]
[378128193,1754740257747,-400.0,0.00024931,2]
[378128195,1754740257757,-400.0,0.00024931,2]
[378128197,1754740257766,-400.0,0.00024931,2]
[378128199,1754740257776,-400.0,0.00024931,2]
[378128201,1754740257785,-400.0,0.00024931,2]
[378128203,1754740257795,-400.0,0.00024931,2]
[378128205,1754740257803,-400.0,0.00024931,2]
[378128207,1754740257813,-400.0,0.00024931,2]
[378128209,1754740257822,-400.0,0.00024931,2]
[378128211,1754740257832,-481.99,0.00024931,2]
[378128213,1754740257841,-463.21,0.00024931,2]
[378128215,1754740257851,-605.47,0.00024931,2]
[378128218,1754740257860,-704.09,0.00024931,2]
[378128220,1754740257870,-499.21,0.00024931,2]
[378128222,1754740257879,-400.0,0.00024931,2]
[378128223,1754740257888,-400.0,0.00024931,2]
[378128226,1754740257898,-400.0,0.00024931,2]
[378128228,1754740257908,-865.43,0.00024931,2]
[378128230,1754740257918,-252.45043819,0.00024931,2]
[378128232,1754740257928,-400.0,0.00024931,2]
[378128234,1754740257938,-786.1,0.00024931,2]
[378128236,1754740257947,-400.0,0.00024931,2]
[378128238,1754740257956,-406.49428002,0.00024931,2]
[378128240,1754740257966,-400.0,0.00024931,2]
[378128242,1754740257975,-627.79,0.00024931,2]
[378128244,1754740257984,-400.0,0.00024931,2]
[378128246,1754740257993,-400.0,0.00024931,2]
[378128248,1754740258002,-456.06,0.00024931,2]
[378128250,1754740258011,-736.64,0.00024931,2]
[378128251,1754740258022,-400.0,0.00024931,2]
[378128253,1754740258031,-879.71,0.00024931,2]
[378128255,1754740258040,-1008.23,0.00024931,2]
[378128257,1754740258050,-400.0,0.00024931,2]
[378128260,1754740258060,-400.0,0.00024931,2]
[378128262,1754740258072,-400.0,0.00024931,2]
[378128264,1754740258081,-400.0,0.00024931,2]
[378128266,1754740258090,-400.0,0.00024931,2]
[378128268,1754740258099,-400.0,0.00024931,2]
[378128270,1754740258108,-400.0,0.00024931,2]
[378128272,1754740258118,-400.0,0.00024931,2]
[378128274,1754740258128,-400.0,0.00024931,2]
[378128276,1754740258137,-400.0,0.00024931,2]
[378128278,1754740258146,-500.25,0.00024931,2]
[378128280,1754740258157,-269.89195188,0.00024931,2]
[378128282,1754740258167,-400.0,0.00024931,2]